bitfinex/quotes_SOLUSD_20260201
["timestamp","ask_amount","ask_price","bid_price","bid_amount"]
[1769959157892,29.26438354,101.29,101.23,19.39732302]
[1769959158094,9.87302051,101.29,101.23,19.39732302]
[1769959158300,14.20966386,101.29,101.23,19.39732302]
[1769959158481,4.33664335,101.28,101.23,19.39732302]
[1769959158684,14.21109251,101.28,101.21,4.34260334]
[1769959159002,14.21109251,101.28,101.19,29.27905946]
[1769959159003,4.33664335,101.25,101.19,29.27905946]
[1769959159188,15.05471968,101.24,101.19,29.27910073]
[1769959159503,19.39136303,101.24,101.2,9.88141449]
[1769959159694,19.39136303,101.26,101.21,4.34260334]
[1769959159897,29.26581219,101.28,101.22,19.39732302]
[1769959160197,15.05471968,101.25,101.2,14.22377895]
[1769959160393,4.33664335,101.25,101.2,9.88135252]
[1769959160594,4.33664335,101.24,101.19,4.34260334]
[1769959160787,19.39136303,101.22,101.17,29.28148895]
[1769959160991,19.39136303,101.22,101.18,9.88312472]
[1769959161182,29.26916519,101.24,101.19,9.88229778]
[1769959161382,19.39136303,101.23,101.18,14.22582917]
[1769959161613,4.33664335,101.23,101.19,9.88238087]
[1769959161901,15.05471968,101.2,101.15,15.05471968]
[1769959162098,15.05471968,101.2,101.15,24.94045222]
[1769959162286,4.33664335,101.21,101.15,15.05471968]
[1769959162489,9.87716426,101.25,101.18,15.05471968]
[1769959162699,15.05471968,101.24,101.19,24.93706072]
[1769959162895,14.21356895,101.25,101.19,4.34260334]
[1769959163094,14.21356895,101.25,101.21,4.34260334]
[1769959163095,15.05471968,101.25,101.21,4.34260334]
[1769959163293,15.05471968,101.23,101.19,4.34260334]
[1769959163602,4.33664335,101.29,101.23,4.34260334]
[1769959163802,24.92701297,101.3,101.25,4.34260334]
[1769959163997,19.39136303,101.26,101.2,4.27527085]
[1769959164202,15.05471968,101.24,101.21,4.34260334]
[1769959164403,15.05471968,101.25,101.21,4.34260334]
[1769959164696,19.39136303,101.29,101.24,4.34260334]
[1769959164888,15.05471968,101.28,101.25,14.21914654]
[1769959165096,15.05471968,101.28,101.23,29.27515421]
[1769959165296,19.39136303,101.29,101.24,29.27471666]
[1769959165513,19.39136303,101.29,101.24,4.34260334]
[1769959165700,4.33664335,101.29,101.24,14.22001924]
[1769959165893,19.39136303,101.29,101.24,4.34260334]
[1769959166110,15.05471968,101.28,101.23,29.2753807]
[1769959166314,6.19914449,101.33,101.19,4.27527085]
[1769959166315,10.53578784,101.33,101.28,4.34260334]
[1769959166500,9.36939397,101.32,101.28,4.34260334]
[1769959166696,27.44,101.36,101.3,4.34260334]
[1769959166899,4.33664335,101.36,101.31,14.21329724]
[1769959167198,9.36939397,101.34,101.29,14.21500657]
[1769959167411,9.36939397,101.32,101.28,9.87340442]
[1769959167608,9.36939397,101.32,101.27,23.58590782]
[1769959167787,9.36939397,101.3,101.26,9.87487508]
[1769959167992,13.70603732,101.31,101.27,9.87442433]
[1769959168193,13.70603732,101.31,101.22,41.08466482]
[1769959168194,4.33664335,101.35,101.28,13.71199731]
[1769959168409,9.36939397,101.33,101.28,13.71199731]
[1769959168615,9.36939397,101.32,101.26,13.71199731]
[1769959168907,13.70603732,101.31,101.26,4.34260334]
[1769959169112,13.70603732,101.31,101.26,23.58750155]
[1769959169301,19.23950897,101.32,101.27,4.34260334]
[1769959169503,9.36939397,101.34,101.29,4.34260334]
[1769959169809,9.36939397,101.33,101.29,4.34260334]
[1769959170213,14.20249631,101.36,101.3,13.71199731]
[1769959170419,9.36939397,101.35,101.3,4.34260334]
[1769959170615,9.36939397,101.33,101.28,13.71199731]
[1769959170914,9.36939397,101.33,101.28,4.34260334]
[1769959171216,9.36939397,101.35,101.3,13.71199731]
[1769959171403,13.70603732,101.35,101.3,4.34260334]
[1769959171719,9.36939397,101.34,101.3,4.34260334]
[1769959172400,19.23556,101.36,101.3,13.71199731]
[1769959172596,14.40154986,101.37,101.31,9.36939397]
[1769959172797,23.77094383,101.37,101.32,13.71199731]
[1769959172996,23.77094383,101.37,101.32,4.34260334]
[1769959173203,19.23587943,101.36,101.3,4.34260334]
[1769959173413,23.77129203,101.37,101.31,23.5822752]
[1769959173604,9.36939397,101.36,101.31,48.25900997]
[1769959173812,9.36939397,101.36,101.31,14.21288123]
[1769959174005,4.33664335,101.35,101.28,4.34260334]
[1769959174205,13.70603732,101.35,101.29,13.71199731]
[1769959174406,9.36939397,101.36,101.31,9.87063721]
[1769959174611,4.33664335,101.34,101.3,9.87134731]
[1769959174799,4.33664335,101.36,101.31,9.87068222]
[1769959174998,13.70603732,101.35,101.31,9.87068222]
[1769959175414,19.23597191,101.36,101.3,48.26283639]
[1769959175717,0.2,101.37,101.33,9.36939397]
[1769959175907,0.2,101.37,101.34,4.34260334]
[1769959176506,0.2,101.37,101.34,13.71199731]
[1769959176711,25.4016064,101.4,101.35,13.71199731]
[1769959176920,9.36939397,101.39,101.35,4.34260334]
[1769959177622,23.55942172,101.41,101.36,9.86582478]
[1769959177920,13.69799467,101.39,101.34,13.5914725]
[1769959178218,13.69799467,101.39,101.34,14.08941775]
[1769959178823,9.36939397,101.4,101.35,23.45812418]
[1769959179024,9.36939397,101.4,101.35,14.08873021]
[1769959179201,23.55942172,101.41,101.35,48.12511973]
[1769959179523,14.19104746,101.4,101.35,23.45812418]
[1769959179815,13.69799467,101.38,101.34,9.8675416]
[1769959180198,13.69799467,101.37,101.31,4.22207853]
[1769959180411,13.69799467,101.39,101.34,9.86723386]
[1769959180610,13.69799467,101.38,101.35,9.86659895]
[1769959180817,9.36939397,101.39,101.35,9.86659895]
[1769959181017,23.56044143,101.4,101.35,9.86659895]
[1769959181200,14.19062432,101.4,101.35,48.125067]
[1769959181517,19.23141759,101.4,101.35,9.86659895]
[1769959181721,9.36939397,101.41,101.36,13.5914725]
[1769959182016,23.55848411,101.42,101.36,13.5914725]
[1769959182220,19.22865861,101.43,101.39,4.22207853]
[1769959182403,19.22865861,101.43,101.38,9.36939397]
[1769959182606,23.55634624,101.44,101.39,4.22207853]
[1769959182806,9.36939397,101.43,101.39,4.22207853]
[1769959183038,9.36939397,101.42,101.37,13.5914725]
[1769959183218,9.36939397,101.43,101.38,13.5914725]
[1769959183517,19.22843365,101.43,101.39,14.08453649]
[1769959183822,4.3286007,101.46,101.41,13.5914725]
[1769959184020,13.69799467,101.48,101.43,9.36939397]
[1769959184231,9.36939397,101.47,101.43,4.22207853]
[1769959184527,13.80489512,101.47,101.42,9.36939397]
[1769959184699,13.80489512,101.47,101.41,13.43594014]
[1769959184900,9.36939397,101.45,101.4,4.06654617]
[1769959185114,13.80489512,101.46,101.41,13.43594014]
[1769959185324,13.80489512,101.46,101.39,9.86245796]
[1769959185325,9.36939397,101.47,101.42,13.43594014]
[1769959185515,9.85366362,101.49,101.43,13.43594014]
[1769959185719,9.36939397,101.47,101.43,4.06654617]
[1769959185918,9.36939397,101.47,101.43,13.92533467]
[1769959186223,4.43550115,101.45,101.39,4.06654617]
[1769959186418,9.36939397,101.43,101.39,13.92883959]
[1769959186612,9.36939397,101.43,101.38,9.86350694]
[1769959186800,9.36939397,101.42,101.38,13.93005311]
[1769959187001,13.80489512,101.44,101.39,13.43594014]
[1769959187414,9.36939397,101.45,101.4,13.43594014]
[1769959187634,9.36939397,101.45,101.41,9.86096045]
[1769959187804,23.66196756,101.45,101.4,13.9280308]
[1769959188229,9.36939397,101.43,101.39,9.86249515]
[1769959188404,34.49975356,101.45,101.4,4.06654617]
[1769959188599,38.93525471,101.45,101.4,13.92843372]
[1769959188805,9.36939397,101.44,101.4,4.06654617]
[1769959189112,9.36939397,101.43,101.38,23.29924846]
[1769959189517,9.36939397,101.44,101.39,13.92934362]
[1769959189717,19.22938213,101.42,101.37,23.30042497]
[1769959189931,13.80489512,101.41,101.35,13.43594014]
[1769959190105,9.36939397,101.4,101.36,9.86539406]
[1769959190300,9.36939397,101.39,101.35,4.06654617]
[1769959190505,4.43550115,101.4,101.36,9.86559361]
[1769959190732,13.80489512,101.4,101.35,13.93286285]
[1769959190908,9.36939397,101.37,101.33,4.06654617]
[1769959191226,13.80489512,101.38,101.33,22.80467988]
[1769959191402,13.80489512,101.38,101.33,13.43528591]
[1769959191609,19.23430824,101.37,101.33,13.4352134]
[1769959191825,4.49469262,101.4,101.33,34.54053143]
[1769959192009,13.86408659,101.4,101.35,9.36939397]
[1769959192210,9.36939397,101.39,101.33,43.9099254]
[1769959192508,9.36939397,101.37,101.32,9.86949724]
[1769959192922,9.36939397,101.37,101.32,9.36939397]
[1769959193119,13.86408659,101.39,101.33,23.30468495]
[1769959193419,23.72504704,101.41,101.36,13.43594014]
[1769959193804,23.72504704,101.41,101.37,9.86485153]
[1769959194431,23.7102467,101.41,101.36,13.93211432]
[1769959195316,9.35459363,101.4,101.36,13.93211432]
[1769959195524,13.84928625,101.39,101.34,4.06654617]
[1769959195718,9.35459363,101.39,101.35,9.86626437]
[1769959196019,9.35459363,101.44,101.39,4.06654617]
[1769959196223,23.7067933,101.45,101.4,4.06654617]
[1769959196425,23.7067933,101.45,101.36,43.88494224]
[1769959196426,9.35459363,101.43,101.38,4.06654617]
[1769959196622,13.84928625,101.43,101.38,4.06654617]
[1769959196825,9.35459363,101.42,101.38,4.06654617]
[1769959197133,4.49469262,101.43,101.38,4.06654617]
[1769959197134,13.84928625,101.43,101.38,4.06654617]
[1769959197624,4.49469262,101.43,101.39,9.86290561]
[1769959197828,23.70838502,101.43,101.39,9.86290561]
[1769959198928,13.84928625,101.43,101.39,9.86290561]
[1769959199128,23.706772,101.45,101.4,4.06654617]
[1769959199334,19.21207938,101.45,101.4,4.06654617]
[1769959199527,9.35459363,101.44,101.4,13.92768973]
[1769959200025,43.8547605,101.45,101.4,13.92768973]
[1769959200225,9.35459363,101.44,101.4,4.06654617]
[1769959200429,9.35459363,101.46,101.41,13.4211398]
[1769959200615,9.35459363,101.45,101.41,4.06654617]
[1769959201016,9.35459363,101.42,101.38,9.86337424]
[1769959201222,9.35459363,101.42,101.37,23.28566341]
[1769959201421,9.35459363,101.42,101.38,9.86376564]
[1769959201617,9.35459363,101.44,101.39,13.4211398]
[1769959201833,9.35459363,101.44,101.38,9.86376564]
[1769959201834,13.84928625,101.47,101.42,4.06654617]
[1769959202032,5.56086188,101.52,101.44,4.06654617]
[1769959202033,0.2,101.52,101.44,4.06654617]
[1769959202244,9.35459363,101.46,101.41,13.4211398]
[1769959202742,9.35459363,101.46,101.38,34.52346183]
[1769959202743,9.35459363,101.44,101.4,4.06654617]
[1769959202928,13.62986448,101.5,101.38,34.52346183]
[1769959202929,4.49469262,101.47,101.41,13.4211398]
[1769959203117,9.35459363,101.46,101.41,13.4211398]
[1769959203439,9.35459363,101.48,101.43,13.4211398]
[1769959203613,23.70282152,101.49,101.44,23.27828787]
[1769959204020,14.34822789,101.49,101.44,47.92339828]
[1769959204228,14.34822789,101.49,101.4,49.30638874]
[1769959204229,9.35459363,101.47,101.42,4.06654617]
[1769959204428,9.35459363,101.44,101.4,4.06654617]
[1769959204814,9.35459363,101.42,101.38,4.06654617]
[1769959205013,9.35459363,101.43,101.39,4.06654617]
[1769959205214,9.35459363,101.43,101.39,13.92938025]
[1769959205417,9.35459363,101.44,101.41,4.06654617]
[1769959205617,19.21273523,101.44,101.41,4.06654617]
[1769959206118,9.35459363,101.44,101.41,13.92728617]
[1769959206329,9.35459363,101.43,101.39,4.06654617]
[1769959206526,14.35211849,101.45,101.4,13.92799919]
[1769959206833,4.49469262,101.44,101.39,9.86243013]
[1769959207039,9.85742587,101.45,101.36,9.86531429]
[1769959207040,13.84928625,101.41,101.36,9.86531429]
[1769959207222,9.35459363,101.4,101.36,9.86531429]
[1769959207416,9.35459363,101.4,101.36,14.16851377]
[1769959207629,9.86582478,101.36,101.35,0.19554]
[1769959207839,14.32052818,101.38,101.35,0.19554]
[1769959208049,13.81083392,101.36,101.31,38.33390218]
[1769959208335,13.81083392,101.36,101.31,14.1736257]
[1769959208535,9.35459363,101.35,101.31,4.30319948]
[1769959208741,13.81083392,101.34,101.29,4.30319948]
[1769959209317,9.35459363,101.34,101.29,23.53042104]
[1769959209533,9.35459363,101.34,101.3,4.30319948]
[1769959209735,19.22253106,101.34,101.3,4.30319948]
[1769959209936,19.22253106,101.34,101.3,14.17474183]
[1769959210220,29.12157554,101.36,101.3,14.17474183]
[1769959210221,9.86703616,101.35,101.31,13.65779311]
[1769959210422,19.22078862,101.36,101.31,13.65779311]
[1769959210726,19.22078862,101.36,101.3,14.17474183]
[1769959210727,9.35459363,101.34,101.3,14.17474183]
[1769959210936,9.35459363,101.34,101.3,4.30319948]
[1769959211137,4.45624029,101.35,101.3,23.52941606]
[1769959211331,9.35459363,101.34,101.3,4.30319948]
[1769959211550,9.35459363,101.34,101.26,49.37619349]
[1769959211551,13.81083392,101.33,101.28,23.53106006]
[1769959211845,13.81083392,101.33,101.29,9.87251055]
[1769959212144,14.32500147,101.33,101.29,9.35459363]
[1769959212322,23.6795951,101.33,101.28,23.53102521]
[1769959214341,23.6795951,101.33,101.27,19.22878368]
[1769959214342,9.35459363,101.31,101.27,19.22878368]
[1769959214533,9.35459363,101.31,101.27,9.87419005]
[1769959215442,4.45624029,101.36,101.29,4.30319948]
[1769959215744,9.35459363,101.34,101.3,4.30319948]
[1769959216834,19.22333931,101.33,101.28,23.53057442]
[1769959217256,14.32426464,101.34,101.29,23.5303669]
[1769959217557,23.67885827,101.34,101.29,23.5303669]
[1769959217749,9.35459363,101.33,101.29,4.30319948]
[1769959218351,23.67885827,101.34,101.29,23.53022495]
[1769959218652,13.81083392,101.33,101.28,23.5309546]
[1769959218947,9.35459363,101.32,101.28,14.17636097]
[1769959219144,23.68004108,101.33,101.28,23.5309546]
[1769959220049,9.35459363,101.32,101.28,14.17636097]
[1769959220254,4.45624029,101.3,101.23,4.30319948]
[1769959220456,4.45624029,101.3,101.22,76.8742629]
[1769959220457,9.35459363,101.29,101.17,0.1]
[1769959220762,13.81083392,101.28,101.23,9.35459363]
[1769959221056,23.6809284,101.32,101.22,9.35459363]
[1769959221231,13.81083392,101.31,101.26,9.35459363]
[1769959221432,19.22468811,101.32,101.28,9.35459363]
[1769959221653,9.35459363,101.32,101.28,19.22818456]
[1769959221853,23.67980533,101.33,101.28,19.22818456]
[1769959222049,9.86777185,101.34,101.3,9.35459363]
[1769959222247,23.67860577,101.34,101.29,19.22710529]
[1769959222562,23.67860577,101.34,101.29,23.53030477]
[1769959222762,9.35459363,101.35,101.31,4.30319948]
[1769959222934,9.35459363,101.34,101.3,4.30319948]
[1769959223260,48.34174811,101.36,101.31,13.65779311]
[1769959223432,9.35459363,101.35,101.31,4.30319948]
[1769959223632,14.32259253,101.36,101.32,13.65779311]
[1769959223827,13.81083392,101.35,101.3,13.65779311]
[1769959224030,9.35459363,101.32,101.28,23.53090011]
[1769959224369,19.22528753,101.31,101.26,23.53315473]
[1769959224650,23.68152782,101.31,101.27,14.17774213]
[1769959224851,23.68152782,101.31,101.27,23.53233576]
[1769959225057,23.68152782,101.31,101.27,14.17761278]
[1769959225247,23.68152782,101.31,101.27,23.53220641]
[1769959225634,23.68152782,101.31,101.27,4.30319948]
[1769959226355,9.8706939,101.31,101.27,23.53228904]
[1769959226534,23.68152782,101.31,101.27,4.30319948]
[1769959227055,19.22528753,101.31,101.27,23.5322928]
[1769959227257,4.45624029,101.39,101.3,9.35459363]
[1769959227429,4.45624029,101.34,101.28,4.30319948]
[1769959227636,9.35459363,101.33,101.28,13.65779311]
[1769959227935,13.81083392,101.33,101.28,4.30319948]
[1769959228154,13.81083392,101.33,101.28,13.65779311]
[1769959228360,9.87166831,101.3,101.26,23.53323797]
[1769959228534,23.68190333,101.31,101.26,23.53323797]
[1769959228934,23.68190333,101.31,101.26,23.53287246]
[1769959229757,14.3273097,101.31,101.27,23.53227061]
[1769959230266,13.81083392,101.3,101.25,23.53384169]
[1769959230433,4.45624029,101.3,101.26,9.35459363]
[1769959230639,4.45624029,101.3,101.23,9.87799346]
[1769959230640,4.45624029,101.27,101.23,9.87799346]
[1769959230859,4.45624029,101.25,101.21,19.23422719]
[1769959231154,13.81083392,101.27,101.22,13.65779311]
[1769959231350,13.81083392,101.26,101.22,9.87908799]
[1769959231552,4.45624029,101.26,101.22,9.35459363]
[1769959231744,4.45624029,101.26,101.22,19.23353182]
[1769959232160,13.81083392,101.26,101.21,29.00373284]
[1769959232341,9.87751876,101.24,101.21,4.30319948]
[1769959232766,4.45624029,101.23,101.2,9.35459363]
[1769959232941,4.45624029,101.22,101.18,9.35459363]
[1769959233141,13.81083392,101.21,101.17,0.1]
[1769959233354,9.35459363,101.22,101.17,13.75779311]
[1769959233558,4.45624029,101.23,101.19,13.65779311]
[1769959233753,13.81083392,101.23,101.18,23.54075734]
[1769959233951,13.81083392,101.22,101.18,4.30319948]
[1769959234139,13.81083392,101.22,101.17,9.45459363]
[1769959234334,9.88142292,101.2,101.17,0.1]
[1769959234539,14.33714916,101.21,101.17,0.1]
[1769959234758,13.81083392,101.21,101.17,0.1]
[1769959235538,4.45624029,101.21,101.17,4.40319948]
[1769959235741,13.81083392,101.21,101.17,0.1]
[1769959236256,13.81083392,101.18,101.17,1e-08]
[1769959236559,4.45624029,101.16,101.12,9.35459363]
[1769959236756,9.35459363,101.17,101.12,23.54662936]
[1769959237266,39.04868458,101.18,101.11,19.3944139]
[1769959237267,13.81083392,101.16,101.11,19.3944139]
[1769959237443,13.81083392,101.16,101.11,9.50459363]
[1769959237770,13.51571584,101.14,101.11,0.15]
[1769959237956,38.7535665,101.18,101.12,13.54945262]
[1769959238269,4.16112221,101.17,101.13,9.35459363]
[1769959238451,13.51571584,101.17,101.12,13.54945262]
[1769959238650,4.16112221,101.17,101.13,9.35459363]
[1769959238842,13.51571584,101.16,101.11,14.23463234]
[1769959239041,4.16112221,101.16,101.11,23.58944727]
[1769959239270,13.51571584,101.16,101.11,13.69945262]
[1769959239694,9.35459363,101.16,101.11,4.34485899]
[1769959239884,9.35459363,101.16,101.12,4.19485899]
[1769959240060,4.16112221,101.16,101.12,13.54945262]
[1769959240373,14.0428635,101.2,101.15,23.43496622]
[1769959240584,23.39745713,101.2,101.15,14.08037259]
[1769959240878,9.35459363,101.19,101.15,14.08037259]
[1769959241060,23.39745713,101.2,101.15,4.19485899]
[1769959241265,9.88174129,101.2,101.17,4.19485899]
[1769959241581,9.35459363,101.21,101.16,9.35459363]
[1769959241582,13.51571584,101.21,101.16,9.35459363]
[1769959241970,13.51571584,101.2,101.15,4.19485899]
[1769959242280,13.51571584,101.2,101.15,13.54945262]
[1769959242491,48.10411389,101.19,101.15,4.19485899]
[1769959242983,14.04352165,101.19,101.15,13.54945262]
[1769959243279,14.04352165,101.19,101.15,23.43548339]
[1769959243478,19.23636626,101.2,101.15,23.43568559]
[1769959243659,9.88177263,101.2,101.15,23.43568559]
[1769959243858,14.04196734,101.21,101.16,13.54945262]
[1769959244062,23.39656097,101.21,101.16,13.54945262]
[1769959244358,0.2,101.34,101.19,14.07718249]
[1769959244359,13.51571584,101.24,101.19,14.07718249]
[1769959244564,23.34927526,101.25,101.2,4.19485899]
[1769959244866,4.11774831,101.23,101.18,13.82984994]
[1769959245071,13.47234194,101.23,101.18,14.35834988]
[1769959245269,13.47234194,101.22,101.17,4.47525631]
[1769959245469,4.11774831,101.24,101.18,14.35821818]
[1769959245681,4.11774831,101.24,101.19,9.88202859]
[1769959245882,13.47234194,101.22,101.16,13.82984994]
[1769959246082,13.47234194,101.21,101.16,4.47525631]
[1769959246269,4.11774831,101.21,101.18,9.88331708]
[1769959246581,13.47234194,101.21,101.16,9.35459363]
[1769959246778,48.05080087,101.22,101.17,4.47525631]
[1769959246976,13.99753109,101.22,101.17,23.71415432]
[1769959247160,4.11774831,101.22,101.17,19.23889801]
[1769959247479,23.35130063,101.23,101.18,4.47525631]
[1769959247680,9.35459363,101.22,101.18,4.47525631]
[1769959248071,9.87895869,101.23,101.18,4.47525631]
[1769959248279,5.36086188,101.28,101.22,4.47525631]
[1769959248280,4.11774831,101.28,101.22,4.47525631]
[1769959248480,13.47234194,101.27,101.22,14.35448116]
[1769959248683,9.35459363,101.26,101.22,14.35448116]
[1769959249067,9.35459363,101.26,101.22,4.47525631]
[1769959249376,4.11774831,101.27,101.18,29.18197053]
[1769959249377,9.35459363,101.24,101.18,29.18197053]
[1769959249575,13.47234194,101.24,101.19,14.35712835]
[1769959250289,13.47234194,101.24,101.2,9.88137525]
[1769959250487,4.11774831,101.26,101.21,4.47525631]
[1769959250671,9.35459363,101.27,101.22,4.47525631]
[1769959250985,4.11774831,101.33,101.26,4.47525631]
[1769959251189,13.47234194,101.31,101.26,13.82984994]
[1769959251372,9.86874568,101.33,101.26,4.47525631]
[1769959251373,13.47234194,101.3,101.26,4.47525631]
[1769959251561,4.11774831,101.3,101.26,4.47525631]
[1769959251982,4.11774831,101.3,101.26,13.82984994]
[1769959252284,4.11774831,101.3,101.26,4.47525631]
[1769959252490,4.11774831,101.3,101.26,13.82984994]
[1769959252672,9.87189592,101.3,101.26,23.70529768]
[1769959252873,9.87189592,101.3,101.26,14.35070405]
[1769959253187,13.98964423,101.3,101.26,4.47525631]
[1769959253787,4.11774831,101.3,101.26,23.70528147]
[1769959253992,4.11774831,101.3,101.24,4.47525631]
[1769959254180,9.35459363,101.29,101.25,9.87635262]
[1769959254489,9.35459363,101.29,101.24,4.47525631]
[1769959254490,9.35459363,101.28,101.24,4.47525631]
[1769959254689,19.22877238,101.28,101.24,4.47525631]
[1769959254893,9.87417875,101.28,101.24,4.47525631]
[1769959255099,23.34652069,101.28,101.23,23.70762517]
[1769959255478,13.99192706,101.28,101.24,9.87739393]
[1769959255794,13.47234194,101.26,101.21,4.47525631]
[1769959255978,13.47234194,101.26,101.21,14.35521148]
[1769959256289,13.47234194,101.26,101.21,23.70980511]
[1769959256596,4.11774831,101.26,101.22,14.35429983]
[1769959257287,23.37544404,101.26,101.21,19.26154952]
[1769959257504,4.11774831,101.24,101.2,4.47525631]
[1769959257691,13.49915608,101.24,101.18,13.85666408]
[1769959257875,13.49915608,101.23,101.18,4.47525631]
[1769959258074,4.11774831,101.23,101.19,9.8822173]
[1769959258281,4.11774831,101.25,101.19,14.35747361]
[1769959258487,13.49915608,101.24,101.19,14.35747361]
[1769959259400,9.87849451,101.23,101.19,14.35747361]
[1769959259785,4.11774831,101.26,101.21,4.47525631]
[1769959259990,13.49915608,101.28,101.22,13.85666408]
[1769959260294,13.49915608,101.29,101.24,4.47525631]
[1769959260598,9.38140777,101.28,101.24,4.47525631]
[1769959260796,9.38140777,101.3,101.25,4.47525631]
[1769959260998,23.37070731,101.31,101.26,13.85666408]
[1769959261218,4.11774831,101.3,101.26,4.47525631]
[1769959261514,13.49915608,101.31,101.27,4.47525631]
[1769959262589,13.98687083,101.33,101.27,23.73122921]
[1769959262794,13.98687083,101.33,101.28,13.85666408]
[1769959262982,19.25053029,101.33,101.28,4.47525631]
[1769959263304,13.49915608,101.32,101.27,23.73122921]
[1769959263512,13.49915608,101.3,101.25,4.47525631]
[1769959263686,13.49915608,101.29,101.24,4.47525631]
[1769959263886,9.38140777,101.28,101.24,4.47525631]
[1769959264086,13.49915608,101.29,101.25,9.87600585]
[1769959264280,4.11774831,101.29,101.25,14.35128045]
[1769959264495,4.11774831,101.29,101.25,4.47525631]
[1769959264695,4.11774831,101.29,101.25,14.35127031]
[1769959264892,19.25210167,101.31,101.26,4.47525631]
[1769959265085,23.36913979,101.32,101.27,9.87458583]
[1769959265287,14.1859282,101.34,101.29,13.85666408]
[1769959265506,9.38140777,101.33,101.29,14.34772809]
[1769959265799,9.28262777,101.32,101.27,13.85666408]
[1769959265981,13.49915608,101.33,101.28,23.72983506]
[1769959266180,0.2,101.34,101.3,4.47525631]
[1769959266389,0.2,101.34,101.31,13.65910408]
[1769959266604,4.11774831,101.37,101.32,9.38140777]
[1769959266988,13.98270622,101.37,101.33,9.38140777]
[1769959267180,13.98270622,101.37,101.32,9.38140777]
[1769959267386,4.11774831,101.37,101.32,9.38140777]
[1769959267701,23.50004828,101.39,101.33,19.25015345]
[1769959268288,9.86331222,101.39,101.35,9.38140777]
[1769959268703,14.11531645,101.42,101.36,13.76652785]
[1769959268905,4.25532829,101.42,101.37,13.76652785]
[1769959269096,13.63673606,101.42,101.37,13.76652785]
[1769959269408,9.38140777,101.4,101.35,4.38512008]
[1769959269588,23.49886459,101.4,101.35,23.6333061]
[1769959269783,19.24248874,101.41,101.36,13.76652785]
[1769959269988,23.49697778,101.42,101.37,13.76652785]
[1769959270204,9.85929855,101.43,101.38,13.76652785]
[1769959270402,14.31362885,101.44,101.39,13.76652785]
[1769959270611,4.25532829,101.43,101.39,4.38512008]
[1769959270793,14.31362885,101.44,101.4,9.38140777]
[1769959270997,4.45532829,101.44,101.4,13.76652785]
[1769959271302,0.2,101.44,101.4,13.76652785]
[1769959271505,10.05809202,101.44,101.4,23.62765043]
[1769959271694,14.31342031,101.44,101.39,13.76652785]
[1769959271898,23.69482808,101.44,101.39,13.76652785]
[1769959272098,13.63673606,101.42,101.37,13.76652785]
[1769959272307,13.63673606,101.41,101.35,13.76652785]
[1769959272502,4.25532829,101.39,101.34,13.76652785]
[1769959272690,4.25532829,101.39,101.34,4.38512008]
[1769959272691,4.25532829,101.38,101.34,4.38512008]
[1769959273008,13.63673606,101.38,101.34,4.38512008]
[1769959273203,13.63673606,101.38,101.34,14.25269564]
[1769959273383,13.63673606,101.4,101.34,13.76652785]
[1769959273583,9.86290561,101.39,101.35,9.86667679]
[1769959273788,14.1182339,101.39,101.34,23.63388436]
[1769959273984,4.25532829,101.39,101.35,9.38140777]
[1769959274409,13.63673606,101.39,101.34,23.63388436]
[1769959274608,13.63673606,101.39,101.34,4.38512008]
[1769959275005,4.25532829,101.37,101.31,19.25156162]
[1769959275207,13.63673606,101.37,101.31,13.76652785]
[1769959275412,13.63673606,101.37,101.32,9.86949721]
[1769959275707,4.25532829,101.39,101.33,13.76652785]
[1769959276010,13.63673606,101.41,101.36,13.76652785]
[1769959276208,13.63673606,101.43,101.37,4.38512008]
[1769959276394,13.63673606,101.43,101.39,13.76652785]
[1769959276395,4.25532829,101.43,101.39,13.76652785]
[1769959276589,14.11442729,101.43,101.39,4.38512008]
[1769959277207,4.25532829,101.42,101.37,4.38512008]
[1769959277412,13.63673606,101.42,101.37,4.38512008]
[1769959277608,4.25532829,101.42,101.37,23.63087694]
[1769959277802,23.49673488,101.42,101.37,4.38512008]
[1769959278130,9.85928485,101.43,101.38,13.76652785]
[1769959278308,23.69521068,101.44,101.39,4.38512008]
[1769959278505,13.63673606,101.42,101.37,23.63110713]
[1769959278806,13.63673606,101.4,101.35,13.76652785]
[1769959279007,4.25532829,101.4,101.36,19.24718189]
[1769959279202,13.63673606,101.42,101.37,19.24606499]
[1769959279410,4.25532829,101.43,101.39,4.38512008]
[1769959279604,4.25532829,101.43,101.39,23.62863511]
[1769959280290,0.2,101.44,101.4,13.76652785]
[1769959280708,0.2,101.44,101.42,4.38512008]
[1769959280897,4.25532829,101.49,101.44,13.76652785]
[1769959281097,13.63673606,101.48,101.42,4.38512008]
[1769959281297,9.38140777,101.46,101.42,4.38512008]
[1769959281599,23.49409039,101.45,101.4,4.38512008]
[1769959281802,9.38140777,101.5,101.4,4.38512008]
[1769959281803,38.75463248,101.51,101.42,13.76652785]
[1769959282004,9.38140777,101.46,101.42,4.38512008]
[1769959282400,9.38140777,101.5,101.39,9.86245201]
[1769959282401,9.38140777,101.44,101.39,9.86245201]
[1769959282603,9.38140777,101.44,101.4,9.861698]
[1769959282912,9.38140777,101.5,101.4,9.861698]
[1769959282913,4.27527085,101.5,101.42,9.38140777]
[1769959283215,9.38140777,101.47,101.41,13.76652785]